Workbook

Sheet TDSheet
A3: Сортировка: | B3: Организация По возрастанию
A4: Период месяц | B4: Количество реализации (с возвратами) | C4: Сумма реализации (с возвратами)
A5: Номенклатура
A6: Склад | F6: 0 | G6: 2 | H6: 4
A7: янв. 2015 | B7: 43526 | C7: 60007615 | E7: =I($A7) -> 0 | F7: =IF($E7=F$6,$A7,F6) -> янв. 2015 | G7: =IF($E7=G$6,$A7,G6) -> 2 | H7: 4
A8: Товар 3 | B8: 58 | C8: 158324 | E8: =I($A8) -> 2 | F8: =IF($E8=F$6,$A8,F7) -> янв. 2015 | G8: =IF($E8=G$6,$A8,G7) -> Товар 3 | H8: =IF($E8=H$6,$A8,H7) -> 4
A9: Город 1 | B9: 3 | C9: 8275 | E9: 4 | F9: янв. 2015 | G9: Товар 3 | H9: Город 1
A10: Город 2 | B10: 11 | C10: 30175 | E10: 4 | F10: янв. 2015 | G10: Товар 3 | H10: Город 2
A11: Город 3 | B11: 9 | C11: 24555 | E11: 4 | F11: янв. 2015 | G11: Товар 3 | H11: Город 3
A12: Город 4 | B12: 2 | C12: 5500 | E12: 4 | F12: янв. 2015 | G12: Товар 3 | H12: Город 4
A13: Город 5 | B13: 1 | C13: 2775 | E13: 4 | F13: янв. 2015 | G13: Товар 3 | H13: Город 5
A14: Город 6 | B14: 3 | C14: 7839 | E14: 4 | F14: янв. 2015 | G14: Товар 3 | H14: Город 6
A15: Город 7 | B15: 1 | C15: 2775 | E15: 4 | F15: янв. 2015 | G15: Товар 3 | H15: Город 7
A16: Город 8 | B16: 1 | C16: 2910 | E16: 4 | F16: янв. 2015 | G16: Товар 3 | H16: Город 8
A17: Город 9 | B17: 3 | C17: 8325 | E17: 4 | F17: янв. 2015 | G17: Товар 3 | H17: Город 9
A18: Город 10 | B18: 23 | C18: 62145 | E18: 4 | F18: янв. 2015 | G18: Товар 3 | H18: Город 10
A19: Город 11 | B19: 1 | C19: 3050 | E19: 4 | F19: янв. 2015 | G19: Товар 3 | H19: Город 11
A20: Товар 2 | B20: 79 | C20: 198950 | E20: 2 | F20: =IF($E20=F$6,$A20,F19) -> янв. 2015 | G20: =IF($E20=G$6,$A20,G19) -> Товар 2 | H20: =IF($E20=H$6,$A20,H19) -> Город 11
A21: Город 1 | B21: 6 | C21: 15250 | E21: 4 | F21: янв. 2015 | G21: Товар 2 | H21: Город 1
A22: Город 2 | B22: 5 | C22: 12500 | E22: 4 | F22: янв. 2015 | G22: Товар 2 | H22: Город 2
A23: Город 3 | B23: 12 | C23: 30480 | E23: 4 | F23: янв. 2015 | G23: Товар 2 | H23: Город 3
A24: Город 4 | B24: 1 | C24: 2525 | E24: 4 | F24: янв. 2015 | G24: Товар 2 | H24: Город 4
A25: Город 5 | B25: 2 | C25: 5100 | E25: 4 | F25: янв. 2015 | G25: Товар 2 | H25: Город 5
A26: Город 7 | B26: 1 | C26: 2550 | E26: 4 | F26: янв. 2015 | G26: Товар 2 | H26: Город 7
A27: Город 12 | B27: 5 | C27: 12750 | E27: 4 | F27: янв. 2015 | G27: Товар 2 | H27: Город 12
A28: Город 8 | B28: 2 | C28: 5230 | E28: 4 | F28: янв. 2015 | G28: Товар 2 | H28: Город 8
A29: Город 9 | B29: 3 | C29: 7650 | E29: 4 | F29: янв. 2015 | G29: Товар 2 | H29: Город 9
A30: Город 10 | B30: 39 | C30: 96500 | E30: 4 | F30: янв. 2015 | G30: Товар 2 | H30: Город 10
A31: Город 11 | B31: 3 | C31: 8415 | E31: 4 | F31: янв. 2015 | G31: Товар 2 | H31: Город 11
A32: Товар 1 | B32: 38 | C32: 57289 | E32: 2 | F32: янв. 2015 | G32: Товар 1 | H32: Город 11
A33: Город 1 | B33: 4 | C33: 6160 | E33: 4 | F33: янв. 2015 | G33: Товар 1 | H33: Город 1
A34: Город 2 | B34: 5 | C34: 7625 | E34: 4 | F34: янв. 2015 | G34: Товар 1 | H34: Город 2
A35: Город 3 | B35: 3 | C35: 4775 | E35: 4 | F35: янв. 2015 | G35: Товар 1 | H35: Город 3
A36: Город 4 | B36: 5 | C36: 7700 | E36: 4 | F36: янв. 2015 | G36: Товар 1 | H36: Город 4
A37: Город 6 | B37: 3 | C37: 4389 | E37: 4 | F37: янв. 2015 | G37: Товар 1 | H37: Город 6
A38: Город 12 | B38: 1 | C38: 1540 | E38: 4 | F38: янв. 2015 | G38: Товар 1 | H38: Город 12
A39: Город 9 | B39: 5 | C39: 7700 | E39: 4 | F39: янв. 2015 | G39: Товар 1 | H39: Город 9
A40: Город 10 | B40: 12 | C40: 17400 | E40: 4 | F40: янв. 2015 | G40: Товар 1 | H40: Город 10
A41: Товар 4 | B41: 99 | C41: 368076 | E41: 2 | F41: янв. 2015 | G41: Товар 4 | H41: Город 10
A42: Город 1 | B42: 7 | C42: 26320 | E42: 4 | F42: янв. 2015 | G42: Товар 4 | H42: Город 1
A43: Город 2 | B43: 13 | C43: 48475 | E43: 4 | F43: янв. 2015 | G43: Товар 4 | H43: Город 2
A44: Город 3 | B44: 18 | C44: 68535 | E44: 4 | F44: янв. 2015 | G44: Товар 4 | H44: Город 3
A45: Город 4 | B45: 1 | C45: 3730 | E45: 4 | F45: янв. 2015 | G45: Товар 4 | H45: Город 4
A46: Город 5 | B46: 8 | C46: 29720 | E46: 4 | F46: янв. 2015 | G46: Товар 4 | H46: Город 5
A47: Город 7 | B47: 4 | C47: 13496 | E47: 4 | F47: янв. 2015 | G47: Товар 4 | H47: Город 7
A48: Город 12 | B48: 1 | C48: 3765 | E48: 4 | F48: янв. 2015 | G48: Товар 4 | H48: Город 12
A49: Город 8 | B49: 3 | C49: 11480 | E49: 4 | F49: янв. 2015 | G49: Товар 4 | H49: Город 8
A50: Город 9 | B50: 12 | C50: 43795 | E50: 4 | F50: янв. 2015 | G50: Товар 4 | H50: Город 9
A51: Город 10 | B51: 31 | C51: 114620 | E51: 4 | F51: янв. 2015 | G51: Товар 4 | H51: Город 10
A52: Город 11 | B52: 1 | C52: 4140 | E52: 4 | F52: янв. 2015 | G52: Товар 4 | H52: Город 11
A53: Товар 6 | B53: 38 | C53: 64455 | E53: 2 | F53: янв. 2015 | G53: Товар 6 | H53: Город 11
A54: Город 1 | B54: 2 | C54: 3520 | E54: 4 | F54: янв. 2015 | G54: Товар 6 | H54: Город 1
A55: Город 2 | B55: 5 | C55: 8725 | E55: 4 | F55: янв. 2015 | G55: Товар 6 | H55: Город 2
A56: Город 3 | B56: 3 | C56: 5450 | E56: 4 | F56: янв. 2015 | G56: Товар 6 | H56: Город 3
A57: Город 4 | B57: 3 | C57: 5280 | E57: 4 | F57: янв. 2015 | G57: Товар 6 | H57: Город 4
A58: Город 7 | B58: 1 | C58: 1760 | E58: 4 | F58: янв. 2015 | G58: Товар 6 | H58: Город 7
A59: Город 10 | B59: 24 | C59: 39720 | E59: 4 | F59: янв. 2015 | G59: Товар 6 | H59: Город 10
A60: Товар 5 | B60: 67 | C60: 224083 | E60: 2 | F60: янв. 2015 | G60: Товар 5 | H60: Город 10
A61: Город 1 | B61: 4 | C61: 13625 | E61: 4 | F61: янв. 2015 | G61: Товар 5 | H61: Город 1
A62: Город 3 | B62: 9 | C62: 30690 | E62: 4 | F62: янв. 2015 | G62: Товар 5 | H62: Город 3
A63: Город 4 | B63: 1 | C63: 3380 | E63: 4 | F63: янв. 2015 | G63: Товар 5 | H63: Город 4
A64: Город 5 | B64: 8 | C64: 27055 | E64: 4 | F64: янв. 2015 | G64: Товар 5 | H64: Город 5
A65: Город 6 | B65: 3 | C65: 9633 | E65: 4 | F65: янв. 2015 | G65: Товар 5 | H65: Город 6
A66: Город 7 | B66: 1 | C66: 3415 | E66: 4 | F66: янв. 2015 | G66: Товар 5 | H66: Город 7
A67: Город 12 | B67: 1 | C67: 3415 | E67: 4 | F67: янв. 2015 | G67: Товар 5 | H67: Город 12
A68: Город 8 | B68: 2 | C68: 7005 | E68: 4 | F68: янв. 2015 | G68: Товар 5 | H68: Город 8
A69: Город 9 | B69: 16 | C69: 53195 | E69: 4 | F69: янв. 2015 | G69: Товар 5 | H69: Город 9
A70: Город 10 | B70: 20 | C70: 65495 | E70: 4 | F70: янв. 2015 | G70: Товар 5 | H70: Город 10
A71: Город 11 | B71: 1 | C71: 3760 | E71: 4 | F71: янв. 2015 | G71: Товар 5 | H71: Город 11
A72: Город 13 | B72: 1 | C72: 3415 | E72: =I($A72) -> 4 | F72: янв. 2015 | G72: Товар 5 | H72: Город 13
A73: Товар 7 | B73: 25 | C73: 76442 | E73: 2 | F73: янв. 2015 | G73: Товар 7 | H73: Город 13
A74: Город 1 | B74: 4 | C74: 12310 | E74: 4 | F74: янв. 2015 | G74: Товар 7 | H74: Город 1
A75: Город 3 | B75: 4 | C75: 12365 | E75: 4 | F75: янв. 2015 | G75: Товар 7 | H75: Город 3
A76: Город 5 | B76: 1 | C76: 3085 | E76: 4 | F76: янв. 2015 | G76: Товар 7 | H76: Город 5
A77: Город 6 | B77: 3 | C77: 8709 | E77: 4 | F77: янв. 2015 | G77: Товар 7 | H77: Город 6
A78: Город 7 | B78: 2 | C78: 6078 | E78: 4 | F78: янв. 2015 | G78: Товар 7 | H78: Город 7
A79: Город 9 | B79: 4 | C79: 11995 | E79: 4 | F79: янв. 2015 | G79: Товар 7 | H79: Город 9
A80: Город 10 | B80: 2 | C80: 6170 | E80: 4 | F80: янв. 2015 | G80: Товар 7 | H80: Город 10
A81: Город 11 | B81: 5 | C81: 15730 | E81: 4 | F81: янв. 2015 | G81: Товар 7 | H81: Город 11
A82: Товар 8 | B82: 114 | C82: 359835 | E82: 2 | F82: янв. 2015 | G82: Товар 8 | H82: Город 11
A83: Город 1 | B83: 5 | C83: 15915 | E83: 4 | F83: янв. 2015 | G83: Товар 8 | H83: Город 1
A84: Город 2 | B84: 7 | C84: 22260 | E84: 4 | F84: =IF($E84=F$6,$A84,F83) -> янв. 2015 | G84: =IF($E84=G$6,$A84,G83) -> Товар 8 | H84: =IF($E84=H$6,$A84,H83) -> Город 2
A85: Город 3 | B85: 26 | C85: 82680 | E85: 4 | F85: янв. 2015 | G85: Товар 8 | H85: Город 3
A86: Город 4 | B86: 1 | C86: 3155 | E86: 4 | F86: янв. 2015 | G86: Товар 8 | H86: Город 4
A87: Город 5 | B87: 6 | C87: 18815 | E87: 4 | F87: янв. 2015 | G87: Товар 8 | H87: Город 5
A88: Город 7 | B88: 4 | C88: 12380 | E88: 4 | F88: янв. 2015 | G88: Товар 8 | H88: Город 7
A89: Город 12 | B89: 1 | C89: 3190 | E89: 4 | F89: янв. 2015 | G89: Товар 8 | H89: Город 12
A90: Город 8 | B90: 1 | C90: 3345 | E90: 4 | F90: янв. 2015 | G90: Товар 8 | H90: Город 8
A91: Город 9 | B91: 7 | C91: 21720 | E91: 4 | F91: янв. 2015 | G91: Товар 8 | H91: Город 9
A92: Город 10 | B92: 53 | C92: 166490 | E92: 4 | F92: янв. 2015 | G92: Товар 8 | H92: Город 10
A93: Город 11 | B93: 1 | C93: 3505 | E93: 4 | F93: янв. 2015 | G93: Товар 8 | H93: Город 11
A94: Город 13 | B94: 2 | C94: 6380 | E94: 4 | F94: янв. 2015 | G94: Товар 8 | H94: Город 13
A95: Товар 9 | B95: 50 | C95: 72308 | E95: 2 | F95: янв. 2015 | G95: Товар 9 | H95: Город 13
A96: Город 1 | B96: 3 | C96: 4470 | E96: 4 | F96: янв. 2015 | G96: Товар 9 | H96: Город 1
A97: Город 2 | B97: 5 | C97: 7375 | E97: 4 | F97: янв. 2015 | G97: Товар 9 | H97: Город 2
A98: Город 3 | B98: 2 | C98: 2980 | E98: 4 | F98: янв. 2015 | G98: Товар 9 | H98: Город 3
A99: Город 4 | B99: 3 | C99: 4470 | E99: 4 | F99: янв. 2015 | G99: Товар 9 | H99: Город 4
A100: Город 5 | B100: 2 | C100: 2980 | E100: 4 | F100: янв. 2015 | G100: Товар 9 | H100: Город 5
A101: Город 6 | B101: 3 | C101: 4248 | E101: 4 | F101: янв. 2015 | G101: Товар 9 | H101: Город 6
A102: Город 7 | B102: 1 | C102: 1490 | E102: 4 | F102: янв. 2015 | G102: Товар 9 | H102: Город 7
A103: Город 12 | B103: 1 | C103: 1490 | E103: 4 | F103: янв. 2015 | G103: Товар 9 | H103: Город 12
A104: Город 9 | B104: 5 | C104: 7450 | E104: 4 | F104: янв. 2015 | G104: Товар 9 | H104: Город 9
A105: Город 10 | B105: 24 | C105: 33720 | E105: 4 | F105: янв. 2015 | G105: Товар 9 | H105: Город 10
A106: Город 11 | B106: 1 | C106: 1635 | E106: 4 | F106: янв. 2015 | G106: Товар 9 | H106: Город 11
A107: Товар 10 | B107: 64 | C107: 204344 | E107: 2 | F107: янв. 2015 | G107: Товар 10 | H107: Город 11
A108: Город 1 | C108: -30 | E108: 4 | F108: янв. 2015 | G108: Товар 10 | H108: Город 1
A109: Город 2 | B109: 5 | C109: 16100 | E109: 4 | F109: янв. 2015 | G109: Товар 10 | H109: Город 2
A110: Город 3 | B110: 16 | C110: 51680 | E110: 4 | F110: янв. 2015 | G110: Товар 10 | H110: Город 3
A111: Город 5 | B111: 3 | C111: 9795 | E111: 4 | F111: янв. 2015 | G111: Товар 10 | H111: Город 5
A112: Город 6 | B112: 3 | C112: 9279 | E112: 4 | F112: янв. 2015 | G112: Товар 10 | H112: Город 6
A113: Город 8 | B113: 2 | C113: 6735 | E113: 4 | F113: янв. 2015 | G113: Товар 10 | H113: Город 8
A114: Город 9 | B114: 11 | C114: 35245 | E114: 4 | F114: янв. 2015 | G114: Товар 10 | H114: Город 9
A115: Город 10 | B115: 20 | C115: 62400 | E115: 4 | F115: янв. 2015 | G115: Товар 10 | H115: Город 10
A116: Город 11 | B116: 4 | C116: 13140 | E116: 4 | F116: янв. 2015 | G116: Товар 10 | H116: Город 11
A117: Товар 11 | B117: 89 | C117: 297482 | E117: 2 | F117: янв. 2015 | G117: Товар 11 | H117: Город 11
A118: Город 1 | B118: 12 | C118: 40620 | E118: 4 | F118: янв. 2015 | G118: Товар 11 | H118: Город 1
A119: Город 3 | B119: 9 | C119: 30430 | E119: 4 | F119: янв. 2015 | G119: Товар 11 | H119: Город 3
A120: Город 4 | B120: 15 | C120: 50806 | E120: 4 | F120: янв. 2015 | G120: Товар 11 | H120: Город 4
A121: Город 5 | B121: 5 | C121: 17265 | E121: 4 | F121: янв. 2015 | G121: Товар 11 | H121: Город 5
A122: Город 6 | B122: 1 | C122: 3216 | E122: 4 | F122: янв. 2015 | G122: Товар 11 | H122: Город 6
A123: Город 7 | B123: 2 | C123: 6770 | E123: 4 | F123: янв. 2015 | G123: Товар 11 | H123: Город 7
A124: Город 12 | B124: 3 | C124: 10155 | E124: 4 | F124: янв. 2015 | G124: Товар 11 | H124: Город 12
A125: Город 8 | B125: 8 | C125: 27420 | E125: 4 | F125: янв. 2015 | G125: Товар 11 | H125: Город 8
A126: Город 9 | B126: 3 | C126: 10155 | E126: 4 | F126: янв. 2015 | G126: Товар 11 | H126: Город 9
A127: Город 10 | B127: 30 | C127: 97260 | E127: 4 | F127: янв. 2015 | G127: Товар 11 | H127: Город 10
A128: Город 13 | B128: 1 | C128: 3385 | E128: 4 | F128: янв. 2015 | G128: Товар 11 | H128: Город 13
A129: Товар 12 | B129: 165 | C129: 400653 | E129: 2 | F129: янв. 2015 | G129: Товар 12 | H129: Город 13
A130: Город 1 | B130: 13 | C130: 31609 | E130: 4 | F130: янв. 2015 | G130: Товар 12 | H130: Город 1
A131: Город 2 | B131: 9 | C131: 21771 | E131: 4 | F131: янв. 2015 | G131: Товар 12 | H131: Город 2
A132: Город 3 | B132: 18 | C132: 43870 | E132: 4 | F132: янв. 2015 | G132: Товар 12 | H132: Город 3
A133: Город 4 | B133: 27 | C133: 66074 | E133: 4 | F133: янв. 2015 | G133: Товар 12 | H133: Город 4
A134: Город 5 | B134: 10 | C134: 24600 | E134: 4 | F134: янв. 2015 | G134: Товар 12 | H134: Город 5
A135: Город 6 | B135: 3 | C135: 7111 | E135: 4 | F135: янв. 2015 | G135: Товар 12 | H135: Город 6
A136: Город 7 | B136: 14 | C136: 33848 | E136: =I($A136) -> 4 | F136: янв. 2015 | G136: Товар 12 | H136: Город 7
A137: Город 12 | B137: 2 | C137: 4920 | E137: 4 | F137: янв. 2015 | G137: Товар 12 | H137: Город 12
A138: Город 8 | B138: 5 | C138: 12540 | E138: 4 | F138: янв. 2015 | G138: Товар 12 | H138: Город 8
A139: Город 9 | B139: 3 | C139: 7380 | E139: 4 | F139: янв. 2015 | G139: Товар 12 | H139: Город 9
A140: Город 10 | B140: 47 | C140: 112370 | E140: 4 | F140: янв. 2015 | G140: Товар 12 | H140: Город 10
A141: Город 11 | B141: 13 | C141: 32100 | E141: 4 | F141: янв. 2015 | G141: Товар 12 | H141: Город 11
A142: Город 13 | B142: 1 | C142: 2460 | E142: 4 | F142: янв. 2015 | G142: Товар 12 | H142: Город 13
A143: Товар 13 | B143: 54 | C143: 648526 | E143: 2 | F143: янв. 2015 | G143: Товар 13 | H143: Город 13
A144: Город 1 | B144: 29 | C144: 346430 | E144: 4 | F144: янв. 2015 | G144: Товар 13 | H144: Город 1
A145: Город 2 | B145: 4 | C145: 48048 | E145: 4 | F145: янв. 2015 | G145: Товар 13 | H145: Город 2
A146: Город 3 | B146: 3 | C146: 36958 | E146: 4 | F146: янв. 2015 | G146: Товар 13 | H146: Город 3
A147: Город 5 | B147: 2 | C147: 24640 | E147: 4 | F147: янв. 2015 | G147: Товар 13 | H147: Город 5
A148: Город 6 | B148: 1 | C148: 12320 | E148: 4 | F148: =IF($E148=F$6,$A148,F147) -> янв. 2015 | G148: =IF($E148=G$6,$A148,G147) -> Товар 13 | H148: =IF($E148=H$6,$A148,H147) -> Город 6
A149: Город 7 | B149: 3 | C149: 35978 | E149: 4 | F149: янв. 2015 | G149: Товар 13 | H149: Город 7
A150: Город 12 | B150: 7 | C150: 81312 | E150: 4 | F150: янв. 2015 | G150: Товар 13 | H150: Город 12
A151: Город 8 | B151: 3 | C151: 38200 | E151: 4 | F151: янв. 2015 | G151: Товар 13 | H151: Город 8
A152: Город 10 | B152: 2 | C152: 24640 | E152: 4 | F152: янв. 2015 | G152: Товар 13 | H152: Город 10
A153: Товар 14 | B153: 190 | C153: 102318 | E153: 2 | F153: янв. 2015 | G153: Товар 14 | H153: Город 10
A154: Город 1 | B154: 40 | C154: 21862 | E154: 4 | F154: янв. 2015 | G154: Товар 14 | H154: Город 1
A155: Город 3 | B155: 43 | C155: 22674 | E155: 4 | F155: янв. 2015 | G155: Товар 14 | H155: Город 3
A156: Город 4 | B156: 28 | C156: 14850 | E156: 4 | F156: янв. 2015 | G156: Товар 14 | H156: Город 4
A157: Город 5 | B157: 12 | C157: 6600 | E157: 4 | F157: янв. 2015 | G157: Товар 14 | H157: Город 5
A158: Город 6 | B158: 5 | C158: 2750 | E158: 4 | F158: янв. 2015 | G158: Товар 14 | H158: Город 6
A159: Город 7 | B159: 9 | C159: 4918 | E159: 4 | F159: янв. 2015 | G159: Товар 14 | H159: Город 7
A160: Город 12 | B160: 5 | C160: 2750 | E160: 4 | F160: янв. 2015 | G160: Товар 14 | H160: Город 12
A161: Город 8 | B161: 9 | C161: 5005 | E161: 4 | F161: янв. 2015 | G161: Товар 14 | H161: Город 8
A162: Город 9 | B162: 7 | C162: 3850 | E162: 4 | F162: янв. 2015 | G162: Товар 14 | H162: Город 9
A163: Город 10 | B163: 15 | C163: 8088 | E163: 4 | F163: янв. 2015 | G163: Товар 14 | H163: Город 10
A164: Город 11 | B164: 4 | C164: 2200 | E164: 4 | F164: янв. 2015 | G164: Товар 14 | H164: Город 11
A165: Город 13 | B165: 13 | C165: 6771 | E165: 4 | F165: янв. 2015 | G165: Товар 14 | H165: Город 13
A166: Товар 15 | B166: 536 | C166: 100806 | E166: 2 | F166: янв. 2015 | G166: Товар 15 | H166: Город 13
A167: Город 1 | B167: 145 | C167: 27364 | E167: 4 | F167: янв. 2015 | G167: Товар 15 | H167: Город 1
A168: Город 3 | B168: 14 | C168: 2698 | E168: 4 | F168: янв. 2015 | G168: Товар 15 | H168: Город 3
A169: Город 4 | B169: 85 | C169: 16017 | E169: 4 | F169: янв. 2015 | G169: Товар 15 | H169: Город 4
A170: Город 5 | B170: 25 | C170: 4750 | E170: 4 | F170: янв. 2015 | G170: Товар 15 | H170: Город 5
A171: Город 6 | B171: 66 | C171: 12042 | E171: 4 | F171: янв. 2015 | G171: Товар 15 | H171: Город 6
A172: Город 7 | B172: 44 | C172: 8280 | E172: 4 | F172: янв. 2015 | G172: Товар 15 | H172: Город 7
A173: Город 12 | B173: 11 | C173: 2090 | E173: 4 | F173: янв. 2015 | G173: Товар 15 | H173: Город 12
A174: Город 8 | B174: 21 | C174: 4047 | E174: 4 | F174: янв. 2015 | G174: Товар 15 | H174: Город 8
A175: Город 9 | B175: 35 | C175: 6650 | E175: 4 | F175: янв. 2015 | G175: Товар 15 | H175: Город 9
A176: Город 10 | B176: 39 | C176: 7356 | E176: 4 | F176: янв. 2015 | G176: Товар 15 | H176: Город 10
A177: Город 11 | B177: 9 | C177: 1767 | E177: 4 | F177: янв. 2015 | G177: Товар 15 | H177: Город 11
A178: Город 13 | B178: 42 | C178: 7745 | E178: 4 | F178: янв. 2015 | G178: Товар 15 | H178: Город 13
A179: Товар 16 | B179: 101 | C179: 54758 | E179: 2 | F179: янв. 2015 | G179: Товар 16 | H179: Город 13
A180: Город 1 | B180: 24 | C180: 13145 | E180: 4 | F180: янв. 2015 | G180: Товар 16 | H180: Город 1
A181: Город 3 | B181: 24 | C181: 12518 | E181: 4 | F181: янв. 2015 | G181: Товар 16 | H181: Город 3
A182: Город 4 | B182: 14 | C182: 7700 | E182: 4 | F182: янв. 2015 | G182: Товар 16 | H182: Город 4
A183: Город 5 | B183: 15 | C183: 8250 | E183: 4 | F183: янв. 2015 | G183: Товар 16 | H183: Город 5
A184: Город 7 | B184: 3 | C184: 1595 | E184: 4 | F184: янв. 2015 | G184: Товар 16 | H184: Город 7
A185: Город 12 | B185: 7 | C185: 3850 | E185: 4 | F185: янв. 2015 | G185: Товар 16 | H185: Город 12
A186: Город 8 | B186: 5 | C186: 2805 | E186: 4 | F186: янв. 2015 | G186: Товар 16 | H186: Город 8
A187: Город 9 | B187: 6 | C187: 3300 | E187: 4 | F187: янв. 2015 | G187: Товар 16 | H187: Город 9
A188: Город 11 | B188: 2 | C188: 1100 | E188: 4 | F188: янв. 2015 | G188: Товар 16 | H188: Город 11
A189: Город 13 | B189: 1 | C189: 495 | E189: 4 | F189: янв. 2015 | G189: Товар 16 | H189: Город 13
A190: Товар 17 | B190: 306 | C190: 57716 | E190: 2 | F190: янв. 2015 | G190: Товар 17 | H190: Город 13
A191: Город 1 | B191: 84 | C191: 15864 | E191: 4 | F191: янв. 2015 | G191: Товар 17 | H191: Город 1
A192: Город 3 | B192: 37 | C192: 6731 | E192: 4 | F192: янв. 2015 | G192: Товар 17 | H192: Город 3
A193: Город 4 | B193: 26 | C193: 4940 | E193: 4 | F193: янв. 2015 | G193: Товар 17 | H193: Город 4
A194: Город 5 | B194: 26 | C194: 4921 | E194: 4 | F194: янв. 2015 | G194: Товар 17 | H194: Город 5
A195: Город 6 | B195: 11 | C195: 2042 | E195: 4 | F195: янв. 2015 | G195: Товар 17 | H195: Город 6
A196: Город 7 | B196: 33 | C196: 6232 | E196: 4 | F196: янв. 2015 | G196: Товар 17 | H196: Город 7
A197: Город 12 | B197: 9 | C197: 1710 | E197: 4 | F197: янв. 2015 | G197: Товар 17 | H197: Город 12
A198: Город 8 | B198: 20 | C198: 3857 | E198: 4 | F198: янв. 2015 | G198: Товар 17 | H198: Город 8
A199: Город 9 | B199: 21 | C199: 3990 | E199: 4 | F199: янв. 2015 | G199: Товар 17 | H199: Город 9
A200: Город 10 | B200: 17 | C200: 3192 | E200: =I($A200) -> 4 | F200: янв. 2015 | G200: Товар 17 | H200: Город 10
A201: Город 11 | B201: 9 | C201: 1767 | E201: 4 | F201: янв. 2015 | G201: Товар 17 | H201: Город 11
A202: Город 13 | B202: 13 | C202: 2470 | E202: 4 | F202: янв. 2015 | G202: Товар 17 | H202: Город 13
... 1013 more rows

Sheet 12015
A1: Таблица 1 | B1: Текущий период | D1: Предыдущий период | E1: Аналогичный период прошлого года | F1: Анализ выполнения плана и динамики продаж | K1: Город 1
B2: план | C2: факт | D2: факт | E2: факт | F2: % выполнения плана | G2: % к предыдущему периоду | H2: % к прошлому году
A3: Товарная группа №1
A4: Товар 1 | C4: =SUMIFS(TDSheet!C:C,TDSheet!G:G,A4,TDSheet!H:H,$K$1) -> 6160
A5: Товар 2 | C5: =SUMIFS(TDSheet!C:C,TDSheet!G:G,A5,TDSheet!H:H,$K$1) -> 15250
A6: Товар 3 | C6: =SUMIFS(TDSheet!C:C,TDSheet!G:G,A6,TDSheet!H:H,$K$1) -> 8275
A7: Товар 4 | C7: =SUMIFS(TDSheet!C:C,TDSheet!G:G,A7,TDSheet!H:H,$K$1) -> 26320
A8: Товар 5 | C8: =SUMIFS(TDSheet!C:C,TDSheet!G:G,A8,TDSheet!H:H,$K$1) -> 13625
A9: Товар 6 | C9: =SUMIFS(TDSheet!C:C,TDSheet!G:G,A9,TDSheet!H:H,$K$1) -> 3520
A10: Товар 7 | C10: =SUMIFS(TDSheet!C:C,TDSheet!G:G,A10,TDSheet!H:H,$K$1) -> 12310
A11: Товар 8 | C11: =SUMIFS(TDSheet!C:C,TDSheet!G:G,A11,TDSheet!H:H,$K$1) -> 15915
A12: Товар 9 | C12: =SUMIFS(TDSheet!C:C,TDSheet!G:G,A12,TDSheet!H:H,$K$1) -> 4470
A13: Товар 10 | C13: =SUMIFS(TDSheet!C:C,TDSheet!G:G,A13,TDSheet!H:H,$K$1) -> -30
A14: Товар 11 | C14: =SUMIFS(TDSheet!C:C,TDSheet!G:G,A14,TDSheet!H:H,$K$1) -> 40620
A15: Товар 12 | C15: =SUMIFS(TDSheet!C:C,TDSheet!G:G,A15,TDSheet!H:H,$K$1) -> 31609
A16: Товар 13 | C16: =SUMIFS(TDSheet!C:C,TDSheet!G:G,A16,TDSheet!H:H,$K$1) -> 346430
A17: Товар 14 | C17: =SUMIFS(TDSheet!C:C,TDSheet!G:G,A17,TDSheet!H:H,$K$1) -> 21862
A18: Товар 15 | C18: =SUMIFS(TDSheet!C:C,TDSheet!G:G,A18,TDSheet!H:H,$K$1) -> 27364
A19: Товар 16 | C19: =SUMIFS(TDSheet!C:C,TDSheet!G:G,A19,TDSheet!H:H,$K$1) -> 13145
A20: Товар 17 | C20: =SUMIFS(TDSheet!C:C,TDSheet!G:G,A20,TDSheet!H:H,$K$1) -> 15864
A21: Товар 18 | C21: =SUMIFS(TDSheet!C:C,TDSheet!G:G,A21,TDSheet!H:H,$K$1) -> 28504
A22: Товар 19 | C22: =SUMIFS(TDSheet!C:C,TDSheet!G:G,A22,TDSheet!H:H,$K$1) -> 27671
A23: Товар 20 | C23: =SUMIFS(TDSheet!C:C,TDSheet!G:G,A23,TDSheet!H:H,$K$1) -> 26345
A24: Товар 21 | C24: =SUMIFS(TDSheet!C:C,TDSheet!G:G,A24,TDSheet!H:H,$K$1) -> 28832
A25: Товар 22 | C25: =SUMIFS(TDSheet!C:C,TDSheet!G:G,A25,TDSheet!H:H,$K$1) -> 30024
A26: Товар 23 | C26: =SUMIFS(TDSheet!C:C,TDSheet!G:G,A26,TDSheet!H:H,$K$1) -> 38725
A27: Товар 24 | C27: =SUMIFS(TDSheet!C:C,TDSheet!G:G,A27,TDSheet!H:H,$K$1) -> 37075
A28: Товар 25 | C28: =SUMIFS(TDSheet!C:C,TDSheet!G:G,A28,TDSheet!H:H,$K$1) -> 27174
A29: Товар 26 | C29: =SUMIFS(TDSheet!C:C,TDSheet!G:G,A29,TDSheet!H:H,$K$1) -> -4180
A30: Товар 27 | C30: =SUMIFS(TDSheet!C:C,TDSheet!G:G,A30,TDSheet!H:H,$K$1) -> 51010
A31: Товар 28 | C31: =SUMIFS(TDSheet!C:C,TDSheet!G:G,A31,TDSheet!H:H,$K$1) -> -1030
A32: Товар 29 | C32: =SUMIFS(TDSheet!C:C,TDSheet!G:G,A32,TDSheet!H:H,$K$1) -> 3955
A33: Товарная группа №2
A34: Товар 30
A35: Товар 31
A36: Товар 32
A37: Товар 33
A38: Товар 34
A39: Товар 35
A40: Товар 36
A41: Товар 37
A42: Товар 38
A43: Товар 39
A44: Товар 40
A45: Товар 41
A46: Товар 42
A47: Товар 43
A48: Товар 44
A49: Товар 45
A50: Товар 46
A51: Товар 47
A52: Товар 48
A53: Товар 49
A54: Товар 50
A55: Товар 51
A56: Товар 52
A57: Товар 53
A58: Товар 54
A59: Товар 55
A60: Товар 56
A61: Товар 57
A62: Товар 58
A63: Товар 59
A64: Товарная группа №3
A65: Товар 60
A66: Товар 61
A67: Товар 62
A68: Товар 63
A69: Товар 64
A70: Товар 65
A71: Товар 66
A72: Товар 67
A73: Товар 68
A74: Товар 69
A75: Товар 70
A76: Товар 71
A77: Товар 72
A78: Товар 73
A79: Товар 74
A80: Товар 75
A81: Товар 76
A82: Товар 77
A83: Товар 78
A84: Товар 79
A85: Товар 80
A86: Товар 81
A87: Товар 82
A88: Товар 83
A89: Товар 84
A90: Товар 85
A91: Товар 86
A92: Товар 87
A93: Товар 88
A94: Товар 89
A95: Товар 90
A96: Товар 91
A97: Товар 92
A98: Товар 93
A99: Товар 94
A100: Товар 95
A101: Товар 96
A102: Товар 97
A103: Товар 98
A104: Товарная группа №4
A105: Товар 99
A106: Товар 100
A107: Товар 101
A108: Товар 102
A109: Товар 103
A110: Товар 104
